fUSD/lending_fUSD_20240328
["ID","MTS","AMOUNT","RATE_DAILY","PERIOD"]
[320875061,1711657851459,-1036.92,0.00049589,120]
[320875062,1711657851469,-683.84,0.00049589,120]
[320875063,1711657851479,-500.0,0.00049589,120]
[320875064,1711657851490,-1740.32,0.00049589,120]
[320875065,1711657851499,-500.0,0.00049589,120]
[320875066,1711657851508,-500.0,0.00049589,120]
[320875067,1711657851518,-500.0,0.00049589,120]
[320875068,1711657851527,-953.44,0.00049589,120]
[320875069,1711657851537,-500.0,0.00049589,120]
[320875070,1711657851546,-854.72,0.00049589,120]
[320875071,1711657851556,-1984.52,0.00049589,120]
[320875072,1711657851565,-1255.07,0.00049589,120]
[320875073,1711657851575,-592.88,0.00049589,120]
[320875074,1711657851585,-1534.49,0.00049589,21]
[320875075,1711657851594,-1697.81,0.00049589,120]
[320875076,1711657851604,-500.0,0.00049589,120]
[320875077,1711657851615,-500.0,0.00049589,120]
[320875078,1711657851625,-1268.16,0.00049589,120]
[320875079,1711657851634,-500.0,0.00049589,120]
[320875080,1711657851644,-2053.67,0.00049589,120]
[320875081,1711657851653,-1242.01,0.00049589,120]
[320875082,1711657851663,-747.46,0.00049589,120]
[320875083,1711657851673,-500.0,0.00049589,120]
[320875084,1711657851683,-500.0,0.00049589,120]
[320875085,1711657851693,-774.33,0.00049589,120]
[320875086,1711657851706,-888.46,0.00049589,120]
[320875087,1711657851717,-1376.46,0.00049589,120]
[320875088,1711657851727,-1710.74,0.00049589,120]
[320875089,1711657851738,-152.07499307,0.00049589,120]
[320875090,1711657851747,-657.85,0.00049589,120]
[320875091,1711657851758,-1045.24,0.00049589,120]
[320875092,1711657851768,-1169.6,0.00049589,120]
[320875093,1711657851778,-509.54,0.00049589,120]
[320875094,1711657851789,-1448.91,0.00049589,120]
[320875095,1711657851798,-1439.96,0.00049589,120]
[320875096,1711657851808,-1004.32,0.00049589,120]
[320875097,1711657851818,-326.76795478,0.00049589,120]
[320875098,1711657851827,-1298.01,0.00049589,120]
[320875099,1711657851837,-1245.78,0.00049589,120]
[320875100,1711657851846,-589.63,0.00049589,120]
[320875101,1711657851856,-500.0,0.00049589,120]
[320875102,1711657851866,-500.0,0.00049589,120]
[320875103,1711657851875,-930.47,0.00049589,120]
[320875104,1711657851884,-4298.21,0.00049589,120]
[320875105,1711657851895,-1852.96,0.00049589,120]
[320875106,1711657851905,-500.0,0.00049589,2]
[320875107,1711657851915,-545.97,0.00049589,120]
[320875108,1711657851926,-500.0,0.00049589,120]
[320875109,1711657851936,-500.0,0.00049589,120]
[320875110,1711657851946,-500.0,0.00049589,120]
[320875111,1711657851955,-500.0,0.00049589,120]
[320875112,1711657851965,-1128.4,0.00049589,120]
[320875113,1711657851974,-873.64,0.00049589,120]
[320875114,1711657851985,-500.0,0.00049589,120]
[320875115,1711657851995,-3091.16,0.00049589,120]
[320875116,1711657852004,-500.0,0.00049589,120]
[320875117,1711657852014,-644.85,0.00049589,120]
[320875118,1711657852023,-953.45,0.00049589,120]
[320875119,1711657852032,-948.97,0.00049589,120]
[320875120,1711657852042,-157.54036188,0.00049615,30]
[320875121,1711657852051,-165.96539819,0.00049726,120]
[320875122,1711657852061,-216.0,0.0004973,15]
[320875123,1711657852071,-150.5,0.0004974,15]
[320875124,1711657852081,-150.5,0.0004975,15]
[320875125,1711657852091,-233.16409572,0.0004975,2]
[320875126,1711657852102,-398723.0816332,0.000498,20]
[320875127,1711657852114,-508.57604111,0.00049861,2]
[320875128,1711657852124,-1117.72,0.00049863,120]
[320875129,1711657852134,-500.0,0.00049863,120]
[320875130,1711657852144,-500.0,0.00049863,120]
[320875131,1711657852153,-500.0,0.00049863,120]
[320875132,1711657852166,-500.0,0.00049863,120]
[320875133,1711657852176,-500.0,0.00049863,2]
[320875134,1711657852186,-500.0,0.00049863,120]
[320875135,1711657852195,-500.0,0.00049863,120]
[320875136,1711657852206,-500.0,0.00049863,120]
[320875137,1711657852215,-500.0,0.00049863,2]
[320875138,1711657852225,-500.0,0.00049863,120]
[320875139,1711657852236,-500.0,0.00049863,120]
[320875140,1711657852246,-500.0,0.00049863,120]
[320875141,1711657852255,-500.0,0.00049863,120]
[320875142,1711657852266,-500.0,0.00049863,120]
[320875143,1711657852275,-500.0,0.00049863,120]
[320875144,1711657852285,-500.0,0.00049863,120]
[320875145,1711657852295,-533.92,0.00049863,120]
[320875146,1711657852305,-500.0,0.00049863,120]
[320875147,1711657852315,-500.0,0.00049863,120]
[320875148,1711657852324,-500.0,0.00049863,120]
[320875149,1711657852333,-500.0,0.00049863,120]
[320875150,1711657852343,-500.0,0.00049863,120]
[320875151,1711657852352,-500.0,0.00049863,120]
[320875152,1711657852361,-500.0,0.00049863,120]
[320875153,1711657852371,-500.0,0.00049863,120]
[320875154,1711657852380,-500.0,0.00049863,120]
[320875155,1711657852389,-500.0,0.00049863,120]
[320875156,1711657852398,-500.0,0.00049863,120]
[320875157,1711657852408,-500.0,0.00049863,120]
[320875158,1711657852417,-500.0,0.00049863,120]
[320875159,1711657852427,-570.97,0.00049863,120]
[320875160,1711657852436,-500.0,0.00049863,120]
[320875161,1711657852445,-657.18,0.00049863,120]
[320875162,1711657852455,-500.0,0.00049863,120]
[320875163,1711657852464,-623.32,0.00049863,120]
[320875164,1711657852474,-500.0,0.00049863,120]
[320875165,1711657852484,-500.0,0.00049863,120]
[320875166,1711657852495,-500.0,0.00049863,120]
[320875167,1711657852506,-500.0,0.00049863,120]
[320875168,1711657852515,-500.0,0.00049863,120]
[320875169,1711657852524,-543.65,0.00049863,120]
[320875170,1711657852534,-543.18,0.00049863,120]
[320875171,1711657852543,-581.85381275,0.00049863,120]
[320875172,1711657852552,-500.0,0.00049863,120]
[320875173,1711657852562,-500.0,0.00049863,120]
[320875174,1711657852571,-500.0,0.00049863,120]
[320875175,1711657852581,-192.36478727,0.00049863,120]
[320875176,1711657852591,-500.0,0.00049863,120]
[320875177,1711657852600,-500.0,0.00049863,30]
[320875178,1711657852609,-500.0,0.00049863,120]
[320875179,1711657852619,-500.0,0.00049863,120]
[320875180,1711657852628,-500.0,0.00049863,120]
[320875181,1711657852638,-500.0,0.00049863,120]
[320875182,1711657852648,-500.0,0.00049863,120]
[320875183,1711657852657,-500.0,0.00049863,120]
[320875184,1711657852667,-769.72,0.00049863,120]
[320875185,1711657852678,-848.13,0.00049863,120]
[320875186,1711657852687,-500.0,0.00049863,120]
[320875187,1711657852697,-500.0,0.00049863,120]
[320875188,1711657852709,-500.0,0.00049863,120]
[320875189,1711657852718,-500.0,0.00049863,120]
[320875190,1711657852728,-607.25,0.00049863,120]
[320875191,1711657852737,-500.0,0.00049863,120]
[320875192,1711657852748,-500.0,0.00049863,120]
[320875193,1711657852760,-500.0,0.00049863,120]
[320875194,1711657852770,-184.41,0.00049863,120]
[320875195,1711657852780,-624.08,0.00049863,120]
[320875196,1711657852790,-500.0,0.00049863,120]
[320875197,1711657852800,-622.22,0.00049863,120]
[320875198,1711657852810,-500.0,0.00049863,120]
[320875199,1711657852819,-500.0,0.00049863,120]
[320875200,1711657852830,-500.0,0.00049863,120]
[320875201,1711657852839,-523.8,0.00049863,120]
[320875202,1711657852849,-500.0,0.00049863,120]
[320875203,1711657852859,-500.0,0.00049863,120]
[320875204,1711657852870,-500.0,0.00049863,120]
[320875205,1711657852880,-500.0,0.00049863,120]
[320875206,1711657852889,-500.0,0.00049863,120]
[320875207,1711657852899,-526.01,0.00049863,120]
[320875208,1711657852910,-500.0,0.00049863,120]
[320875209,1711657852920,-732.83,0.00049863,120]
[320875210,1711657852930,-500.0,0.00049863,120]
[320875211,1711657852940,-500.0,0.00049863,120]
[320875212,1711657852950,-500.0,0.00049863,120]
[320875213,1711657852960,-500.0,0.00049863,120]
[320875214,1711657852969,-504.61,0.00049863,120]
[320875215,1711657852980,-500.0,0.00049863,120]
[320875216,1711657852990,-500.0,0.00049863,120]
[320875217,1711657852999,-500.0,0.00049863,120]
[320875218,1711657853009,-500.0,0.00049863,120]
[320875219,1711657853019,-786.16,0.00049863,120]
[320875220,1711657853028,-568.16,0.00049863,120]
[320875221,1711657853038,-500.0,0.00049863,120]
[320875222,1711657853048,-500.0,0.00049863,120]
[320875223,1711657853057,-500.0,0.00049863,120]
[320875224,1711657853067,-500.0,0.00049863,120]
[320875225,1711657853077,-1868.91,0.00049863,120]
[320875226,1711657853087,-500.0,0.00049863,120]
[320875227,1711657853097,-539.73,0.00049863,120]
[320875228,1711657853107,-1238.66,0.00049863,120]
[320875229,1711657853118,-1001.82,0.00049863,120]
[320875230,1711657853132,-500.0,0.00049863,120]
[320875231,1711657853143,-1182.13,0.00049863,120]
[320875232,1711657853153,-1275.02,0.00049863,120]
[320875233,1711657853163,-500.0,0.00049863,120]
[320875234,1711657853173,-2115.21,0.00049863,120]
[320875235,1711657853184,-500.0,0.00049863,120]
[320875236,1711657853194,-500.0,0.00049863,120]
[320875237,1711657853205,-185.24,0.00049863,120]
[320875238,1711657853216,-2111.38,0.00049863,120]
[320875239,1711657853226,-2098.21,0.00049863,120]
[320875240,1711657853238,-500.0,0.00049863,120]
[320875241,1711657853248,-593.3,0.00049863,120]
[320875242,1711657853258,-530.79,0.00049863,120]
[320875243,1711657853267,-810.67,0.00049863,120]
[320875244,1711657853277,-500.0,0.00049863,120]
[320875245,1711657853286,-167.82971076,0.00049863,120]
[320875246,1711657853297,-663.88,0.00049863,120]
[320875247,1711657853308,-2086.79,0.00049863,120]
[320875248,1711657853318,-804.93,0.00049863,120]
[320875249,1711657853328,-1062.0,0.00049863,120]
[320875250,1711657853338,-500.0,0.00049863,120]
[320875251,1711657853348,-8185.27,0.00049863,120]
[320875252,1711657853358,-500.0,0.00049863,120]
[320875253,1711657853367,-838.06,0.00049863,120]
[320875254,1711657853377,-500.0,0.00049863,7]
[320875255,1711657853387,-500.0,0.00049863,120]
[320875256,1711657853397,-558.67,0.00049863,120]
[320875257,1711657853408,-1015.69,0.00049863,120]
[320875258,1711657853418,-992.14,0.00049863,120]
[320875259,1711657853428,-1110.66,0.00049863,120]
[320875260,1711657853438,-500.0,0.00049863,120]
[320875261,1711657853450,-771.34,0.00049863,120]
[320875262,1711657853459,-1133.96,0.00049863,120]
[320875263,1711657853469,-1336.33,0.00049863,120]
[320875264,1711657853481,-419.74723317,0.00049863,120]
[320875265,1711657853491,-1152.32,0.00049863,120]
[320875266,1711657853501,-500.0,0.00049863,120]
[320875267,1711657853511,-5950.39,0.00049863,120]
[320875268,1711657853522,-500.0,0.00049863,120]
[320875269,1711657853532,-500.0,0.00049863,120]
[320875270,1711657853542,-1600.55,0.00049863,120]
[320875271,1711657853552,-500.0,0.00049863,120]
[320875272,1711657853562,-1596.31,0.00049863,120]
[320875273,1711657853572,-2229.86,0.00049863,120]
[320875274,1711657853582,-500.0,0.00049863,120]
[320875275,1711657853592,-1144.93,0.00049863,120]
[320875276,1711657853601,-500.0,0.00049863,120]
[320875277,1711657853611,-500.0,0.00049863,120]
[320875278,1711657853620,-1888.6,0.00049863,120]
[320875279,1711657853630,-829.48,0.00049863,120]
[320875280,1711657853642,-950.58,0.00049863,120]
[320875281,1711657853653,-500.0,0.00049863,120]
[320875282,1711657853663,-695.57,0.00049863,120]
[320875283,1711657853673,-500.0,0.00049863,120]
[320875284,1711657853682,-1770.22,0.00049863,120]
[320875285,1711657853692,-1175.4,0.00049863,120]
[320875286,1711657853702,-786.34,0.00049863,120]
[320875287,1711657853714,-704.67,0.00049863,120]
[320875288,1711657853725,-500.0,0.00049863,120]
[320875289,1711657853735,-1147.32,0.00049863,120]
[320875290,1711657853744,-500.0,0.00049863,120]
[320875291,1711657853755,-811.81,0.00049863,120]
[320875292,1711657853766,-817.91,0.00049863,120]
[320875293,1711657853776,-843.26,0.00049863,120]
[320875294,1711657853787,-1318.38,0.00049863,120]
[320875295,1711657853798,-1796.5,0.00049863,120]
[320875296,1711657853811,-7494.96,0.00049863,120]
[320875297,1711657853820,-500.0,0.00049863,120]
[320875298,1711657853830,-1916.07,0.00049863,120]
[320875299,1711657853840,-500.0,0.00049863,120]
[320875300,1711657853851,-604.95,0.00049863,120]
[320875301,1711657854051,-838.79,0.00049863,120]
[320875302,1711657854062,-500.0,0.00049863,120]
[320875303,1711657854071,-1259.32,0.00049863,120]
[320875304,1711657854080,-500.0,0.00049863,120]
[320875305,1711657854089,-2498.54,0.00049863,120]
[320875306,1711657854099,-852.74,0.00049863,120]
[320875307,1711657854108,-1225.73,0.00049863,120]
[320875308,1711657854117,-1137.18,0.00049863,120]
[320875309,1711657854127,-500.0,0.00049863,120]
[320875310,1711657854136,-1103.04,0.00049863,120]
[320875311,1711657854145,-1611.72,0.00049863,120]
[320875312,1711657854155,-500.0,0.00049863,120]
[320875313,1711657854165,-1413.66,0.00049863,120]
[320875314,1711657854174,-1156.34,0.00049863,120]
[320875315,1711657854183,-1001.61,0.00049863,120]
[320875316,1711657854193,-500.0,0.00049863,120]
[320875317,1711657854203,-550.97,0.00049863,120]
[320875318,1711657854212,-649.50284741,0.00049863,120]
[320875319,1711657854222,-500.0,0.00049863,120]
[320875320,1711657854232,-12116.07,0.00049863,120]
[320875321,1711657854241,-1485.54,0.00049863,120]
[320875322,1711657854251,-500.0,0.00049863,120]
[320875323,1711657854260,-500.0,0.00049863,120]
[320875324,1711657854269,-1869.89,0.00049863,120]
[320875325,1711657854279,-1439.35,0.00049863,120]
[320875326,1711657854289,-2806.09,0.00049863,120]
[320875327,1711657854298,-500.0,0.00049863,120]
[320875328,1711657854307,-1111.4,0.00049863,120]
[320875329,1711657854316,-3261.79,0.00049863,120]
[320875330,1711657854325,-500.0,0.00049863,120]
[320875331,1711657854336,-934.15,0.00049863,120]
[320875332,1711657854346,-500.0,0.00049863,120]
[320875333,1711657854356,-5735.17,0.00049863,120]
[320875334,1711657854365,-2204.92,0.00049863,120]
[320875335,1711657854375,-1287.66,0.00049863,120]
[320875336,1711657854385,-500.0,0.00049863,120]
[320875337,1711657854395,-500.0,0.00049863,120]
[320875338,1711657854405,-1082.84,0.00049863,120]
[320875339,1711657854414,-500.0,0.00049863,120]
[320875340,1711657854423,-1036.92,0.00049863,120]
[320875341,1711657854433,-683.84,0.00049863,120]
[320875342,1711657854442,-500.0,0.00049863,120]
[320875343,1711657854452,-1740.32,0.00049863,120]
[320875344,1711657854464,-500.0,0.00049863,120]
[320875345,1711657854473,-500.0,0.00049863,120]
[320875346,1711657854482,-500.0,0.00049863,120]
[320875347,1711657854491,-953.44,0.00049863,120]
[320875348,1711657854501,-500.0,0.00049863,120]
[320875349,1711657854510,-854.72,0.00049863,120]
[320875350,1711657854519,-1984.52,0.00049863,120]
[320875351,1711657854528,-1255.07,0.00049863,120]
[320875352,1711657854538,-592.88,0.00049863,120]
[320875353,1711657854547,-1534.49,0.00049863,21]
[320875354,1711657854556,-1697.81,0.00049863,120]
[320875355,1711657854566,-500.0,0.00049863,120]
[320875356,1711657854576,-500.0,0.00049863,120]
[320875357,1711657854585,-1268.16,0.00049863,120]
[320875358,1711657854594,-500.0,0.00049863,120]
[320875359,1711657854604,-2053.67,0.00049863,120]
[320875360,1711657854614,-1242.01,0.00049863,120]
[320875361,1711657854623,-747.46,0.00049863,120]
[320875362,1711657854633,-500.0,0.00049863,120]
[320875363,1711657854643,-500.0,0.00049863,120]
[320875364,1711657854652,-774.33,0.00049863,120]
[320875365,1711657854662,-888.46,0.00049863,120]
[320875366,1711657854672,-1376.46,0.00049863,120]
[320875367,1711657854681,-1710.74,0.00049863,120]
[320875368,1711657854691,-657.85,0.00049863,120]
[320875369,1711657854701,-1045.24,0.00049863,120]
[320875370,1711657854712,-1169.6,0.00049863,120]
[320875371,1711657854721,-509.54,0.00049863,120]
[320875372,1711657854731,-1448.91,0.00049863,120]
[320875373,1711657854741,-1439.96,0.00049863,120]
[320875374,1711657854750,-1004.32,0.00049863,120]
[320875375,1711657854761,-1298.01,0.00049863,120]
[320875376,1711657854770,-1245.78,0.00049863,120]
[320875377,1711657854779,-589.63,0.00049863,120]
[320875378,1711657854788,-500.0,0.00049863,120]
[320875379,1711657854798,-500.0,0.00049863,120]
[320875380,1711657854808,-930.47,0.00049863,120]
[320875381,1711657854817,-4298.21,0.00049863,120]
[320875382,1711657854827,-500.0,0.00049863,2]
[320875383,1711657854836,-545.97,0.00049863,120]
[320875384,1711657854846,-1852.96,0.00049863,120]
[320875385,1711657854855,-500.0,0.00049863,120]
[320875386,1711657854865,-196.60615574,0.00049863,120]
[320875387,1711657854874,-500.0,0.00049863,120]
[320875388,1711657854883,-500.0,0.00049863,120]
[320875389,1711657854893,-1128.4,0.00049863,120]
[320875390,1711657854902,-873.64,0.00049863,120]
[320875391,1711657854912,-500.0,0.00049863,120]
[320875392,1711657854921,-3091.16,0.00049863,120]
[320875393,1711657854931,-500.0,0.00049863,120]
[320875394,1711657854940,-644.85,0.00049863,120]
[320875395,1711657854949,-953.45,0.00049863,120]
[320875396,1711657854958,-948.97,0.00049863,120]
[320875397,1711657854967,-168.0,0.0004987,15]
[320875398,1711657854976,-200.0,0.00049871,30]
[320875399,1711657854985,-800.0,0.00049871,30]
[320875400,1711657854994,-500.0,0.00049871,30]
[320875401,1711657855003,-200.0,0.00049871,30]
[320875402,1711657855013,-286.0,0.0004988,15]
[320875403,1711657855023,-168.0,0.0004988,15]
[320875404,1711657855032,-150.5,0.0004989,15]
[320875405,1711657855041,-168.0,0.0004989,15]
[320875406,1711657855050,-200.0,0.000499,18]
[320875407,1711657855060,-155.45999998,0.00049979,30]
[320875408,1711657855069,-100000.0,0.0005,40]
[320875409,1711657855079,-1000.0,0.0005,2]
[320875410,1711657855089,-6082.74,0.0005,120]
[320875411,1711657855098,-1003.7306328,0.0005,2]
[320875412,1711657855108,-10008.58984851,0.0005,2]
[320875413,1711657855117,-5008.0576384,0.0005,3]
[320875414,1711657855126,-2000.0,0.0005,70]
[320875415,1711657855135,-412.61855004,0.0005,30]
[320875416,1711657855145,-937.0,0.0005,26]
[320875417,1711657855155,-6698.05379025,0.00050026,2]
[320875418,1711657855164,-13707.70836485,0.00050085,2]
[320875419,1711657855174,-1109.28,0.00050097,120]
[320875420,1711657855184,-334.7401256,0.00050135,90]
[320875421,1711657855193,-1117.72,0.00050136,120]
[320875422,1711657855203,-435.50951967,0.00050136,120]
[320875423,1711657855212,-500.0,0.00050136,120]
[320875424,1711657855222,-542.08776664,0.00050136,120]
[320875425,1711657855231,-500.0,0.00050136,120]
[320875426,1711657855242,-500.0,0.00050136,2]
[320875427,1711657855251,-359.64,0.00050136,120]
[320875428,1711657855261,-500.0,0.00050136,120]
[320875429,1711657855270,-500.0,0.00050136,120]
[320875430,1711657855279,-500.0,0.00050136,2]
[320875431,1711657855289,-500.0,0.00050136,120]
[320875432,1711657855298,-500.0,0.00050136,120]
[320875433,1711657855308,-500.0,0.00050136,120]
[320875434,1711657855317,-500.0,0.00050136,120]
[320875435,1711657855326,-500.0,0.00050136,120]
[320875436,1711657855336,-625.52039007,0.00050136,120]
[320875437,1711657855345,-500.0,0.00050136,120]
[320875438,1711657855355,-533.92,0.00050136,120]
[320875439,1711657855364,-500.0,0.00050136,120]
[320875440,1711657855373,-500.0,0.00050136,120]
[320875441,1711657855382,-500.0,0.00050136,120]
[320875442,1711657855391,-500.0,0.00050136,120]
[320875443,1711657855402,-500.0,0.00050136,120]
[320875444,1711657855411,-500.0,0.00050136,120]
[320875445,1711657855422,-500.0,0.00050136,120]
[320875446,1711657855434,-584.3,0.00050136,120]
[320875447,1711657855444,-500.0,0.00050136,120]
[320875448,1711657855454,-500.0,0.00050136,120]
[320875449,1711657855464,-500.0,0.00050136,120]
[320875450,1711657855474,-500.0,0.00050136,120]
[320875451,1711657855486,-500.0,0.00050136,120]
[320875452,1711657855495,-570.97,0.00050136,120]
[320875453,1711657855505,-500.0,0.00050136,120]
[320875454,1711657855514,-657.18,0.00050136,120]
[320875455,1711657855523,-500.0,0.00050136,120]
[320875456,1711657855533,-623.32,0.00050136,120]
[320875457,1711657855542,-500.0,0.00050136,120]
[320875458,1711657855551,-500.0,0.00050136,120]
[320875459,1711657855560,-500.0,0.00050136,120]
[320875460,1711657855570,-500.0,0.00050136,120]
[320875461,1711657855579,-500.0,0.00050136,120]
[320875462,1711657855589,-543.65,0.00050136,120]
[320875463,1711657855599,-543.18,0.00050136,120]
[320875464,1711657855608,-500.0,0.00050136,120]
[320875465,1711657855617,-500.0,0.00050136,120]
[320875466,1711657855626,-500.0,0.00050136,120]
[320875467,1711657855635,-500.0,0.00050136,120]
[320875468,1711657855644,-500.0,0.00050136,30]
[320875469,1711657855653,-500.0,0.00050136,120]
[320875470,1711657855662,-500.0,0.00050136,120]
[320875471,1711657855671,-500.0,0.00050136,120]
[320875472,1711657855680,-500.0,0.00050136,120]
[320875473,1711657855690,-500.0,0.00050136,120]
[320875474,1711657855699,-500.0,0.00050136,120]
[320875475,1711657855708,-769.72,0.00050136,120]
[320875476,1711657855719,-848.13,0.00050136,120]
[320875477,1711657855728,-500.0,0.00050136,120]
[320875478,1711657855737,-500.0,0.00050136,120]
[320875479,1711657855746,-500.0,0.00050136,120]
[320875480,1711657855757,-500.0,0.00050136,120]
[320875481,1711657855766,-607.25,0.00050136,120]
[320875482,1711657855775,-500.0,0.00050136,120]
[320875483,1711657855784,-500.0,0.00050136,120]
[320875484,1711657855794,-500.0,0.00050136,120]
[320875485,1711657855804,-184.41,0.00050136,120]
[320875486,1711657855813,-624.08,0.00050136,120]
[320875487,1711657855822,-500.0,0.00050136,120]
[320875488,1711657855831,-622.22,0.00050136,120]
[320875489,1711657855841,-500.0,0.00050136,120]
[320875490,1711657855850,-500.0,0.00050136,120]
[320875491,1711657855859,-500.0,0.00050136,120]
[320875492,1711657855868,-523.8,0.00050136,120]
[320875493,1711657855878,-500.0,0.00050136,120]
[320875494,1711657855888,-500.0,0.00050136,120]
[320875495,1711657855898,-500.0,0.00050136,120]
[320875496,1711657855908,-437.31339562,0.00050136,120]
[320875497,1711657855919,-500.0,0.00050136,120]
[320875498,1711657855928,-526.01,0.00050136,120]
[320875499,1711657855937,-500.0,0.00050136,120]
[320875500,1711657855948,-732.83,0.00050136,120]
[320875501,1711657855958,-500.0,0.00050136,120]
[320875502,1711657855967,-500.0,0.00050136,120]
[320875503,1711657855975,-500.0,0.00050136,120]
[320875504,1711657855985,-500.0,0.00050136,120]
[320875505,1711657855993,-504.61,0.00050136,120]
[320875506,1711657856003,-500.0,0.00050136,120]
[320875507,1711657856012,-500.0,0.00050136,120]
[320875508,1711657856024,-500.0,0.00050136,120]
[320875509,1711657856034,-500.0,0.00050136,120]
[320875510,1711657856044,-786.16,0.00050136,120]
[320875511,1711657856053,-568.16,0.00050136,120]
[320875512,1711657856063,-500.0,0.00050136,120]
[320875513,1711657856073,-500.0,0.00050136,120]
[320875514,1711657856084,-500.0,0.00050136,120]
[320875515,1711657856094,-500.0,0.00050136,120]
[320875516,1711657856103,-1868.91,0.00050136,120]
[320875517,1711657856113,-500.0,0.00050136,120]
[320875518,1711657856123,-539.73,0.00050136,120]
[320875519,1711657856132,-1238.66,0.00050136,120]
[320875520,1711657856142,-1001.82,0.00050136,120]
[320875521,1711657856151,-500.0,0.00050136,120]
[320875522,1711657856160,-1182.13,0.00050136,120]
[320875523,1711657856169,-500.0,0.00050136,120]
[320875524,1711657856178,-1275.02,0.00050136,120]
[320875525,1711657856188,-2115.21,0.00050136,120]
[320875526,1711657856198,-500.0,0.00050136,120]
[320875527,1711657856208,-500.0,0.00050136,120]
[320875528,1711657856218,-2111.38,0.00050136,120]
[320875529,1711657856229,-500.0,0.00050136,120]
[320875530,1711657856242,-2098.21,0.00050136,120]
[320875531,1711657856252,-593.3,0.00050136,120]
[320875532,1711657856261,-530.79,0.00050136,120]
[320875533,1711657856272,-810.67,0.00050136,120]
[320875534,1711657856281,-500.0,0.00050136,120]
[320875535,1711657856291,-663.88,0.00050136,120]
[320875536,1711657856354,-2086.79,0.00050136,120]
[320875537,1711657856363,-804.93,0.00050136,120]
[320875538,1711657856372,-1062.0,0.00050136,120]
[320875539,1711657856381,-500.0,0.00050136,120]
[320875540,1711657856390,-8185.27,0.00050136,120]
[320875541,1711657856399,-500.0,0.00050136,120]
[320875542,1711657856408,-838.06,0.00050136,120]
[320875543,1711657856417,-500.0,0.00050136,7]
[320875544,1711657856426,-500.0,0.00050136,120]
[320875545,1711657856436,-558.67,0.00050136,120]
[320875546,1711657856445,-1015.69,0.00050136,120]
[320875547,1711657856454,-992.14,0.00050136,120]
[320875548,1711657856462,-1110.66,0.00050136,120]
[320875549,1711657856471,-500.0,0.00050136,120]
[320875550,1711657856480,-771.34,0.00050136,120]
[320875551,1711657856491,-1133.96,0.00050136,120]
[320875552,1711657856500,-1336.33,0.00050136,120]
[320875553,1711657856509,-1152.32,0.00050136,120]
[320875554,1711657856518,-500.0,0.00050136,120]
[320875555,1711657856527,-5950.39,0.00050136,120]
[320875556,1711657856536,-500.0,0.00050136,120]
[320875557,1711657856545,-500.0,0.00050136,120]
[320875558,1711657856554,-1600.55,0.00050136,120]
[320875559,1711657856563,-500.0,0.00050136,120]
[320875560,1711657856572,-1596.31,0.00050136,120]